Cogmind - Beta 16.1 @@@ ROGUE MODE // 2026.05.02 @ 12:35:54 Player: stevie364 Result: Destroyed by G-47 Trooper with Particle Gun Performance ------------- Evolutions (2) 1000 Regions Visited (8) 1600 Robots Destroyed (78) 390 Value Destroyed (3014) 3014 Prototype IDs (30) 600 Alien Tech Used (0) 0 Bonus (1309) 1309 TOTAL SCORE: 7913 Bonus ------- High Alert Combat Kills 332 Follower Combat Kills 277 Entered Garrisons 400 Aligned with FarCom 300 Cogmind --------- Core Integrity 0/550 Matter 12/300 Energy 100/100 System Corruption 8% Temperature Cool (18) Movement Core (700) Ox13 Location -8/Garrison Parts ------- > --- POWER (1) -------- (None) > --- PROPULSION (4) --- (None) > --- UTILITY (4) ------ High-capacity Storage Unit Advanced Targeting Computer > --- WEAPON (2) ------- (None) > --- INVENTORY (20) --- Improved Ion Engine Light Nuclear Core Fission Core Light Fission Core Light Treads Cesium-ion Thruster Improved VTOL Module Improved VTOL Module Improved VTOL Module Experimental Sensor Array Seismic Detector Improved Light Armor Plating Makeshift System Shield Gauss Cannon Gauss Cannon Gauss Cannon Bore Cannon Mini Grenade Launcher Mini Grenade Launcher Longsword +1 Peak State ------------ > --- POWER ------------ Light Nuclear Core > --- PROPULSION ------- Light Treads Light Treads Light Treads Advanced Treads > --- UTILITY ---------- High-capacity Storage Unit Advanced Targeting Computer Improved Light Armor Plating Improved Light Armor Plating > --- WEAPON ----------- Beamcaster Gauss Cannon > --- INVENTORY -------- Fission Core Fission Core Light Fission Core Cesium-ion Thruster Improved VTOL Module Improved VTOL Module Improved VTOL Module Experimental Sensor Array Seismic Detector Improved Light Armor Plating Makeshift System Shield Gauss Cannon Gauss Cannon Gauss Cannon Bore Cannon Mini Grenade Launcher Mini Grenade Launcher Longsword +1 [Rating: 35] Favorites ----------- Power Ion Engine Engine Ion Engine Power Core Light Nuclear Core Propulsion Light Treads Treads Light Treads Leg Carbon-fiber Leg Wheel Wheel Flight Unit VTOL Module Utility Improved Light Armor Plating Device Seismic Detector Storage High-capacity Storage Unit Processor Advanced Targeting Computer Protection Improved Light Armor Plating Weapon Improved Light Cannon Energy Gun Beamcaster Ballistic Gun Light Assault Rifle Ballistic Cannon Improved Light Cannon Launcher Mini Grenade Launcher Slashing Weapon Longsword +1 Build | -11 -10 -10 -10 -9 -8 -8 -8 -8 ------- Run | Yrd Mat Min Exi Min Mat Gar Mat Gar Slots Evolved 4 | . . . . . 4 . . . Power . | . . . . . . . . . Propulsion 2 | . . . . . 2 . . . Utility 2 | . . . . . 2 . . . Weapon . | . . . . . . . . . Parts Attached 59 | 7 13 4 . . 11 9 2 13 Power 7 | 1 1 1 . . . 1 . 3 Engine 5 | 1 1 1 . . . 1 . 1 Core 2 | . . . . . . . . 2 Reactor . | . . . . . . . . . Propulsion 23 | 2 4 2 . . 5 6 1 3 Treads 16 | 2 1 . . . 4 6 1 2 Leg 2 | . . 2 . . . . . . Wheel 1 | . 1 . . . . . . . Hover . | . . . . . . . . . Flight 4 | . 2 . . . 1 . . 1 Utility 12 | 2 3 1 . . 5 . . 1 Device 4 | 1 1 1 . . 1 . . . Storage 2 | 1 1 . . . . . . . Processor 1 | . . . . . . . . 1 Hackware . | . . . . . . . . . Protection 5 | . 1 . . . 4 . . . Artifact . | . . . . . . . . . Weapon 17 | 2 5 . . . 1 2 1 6 Energy Gun 2 | 1 . . . . . . . 1 Energy Cannon . | . . . . . . . . . Ballistic Gun 4 | 1 3 . . . . . . . Ballistic Cannon 8 | . 2 . . . 1 1 1 3 Launcher 2 | . . . . . . 1 . 1 Special Weapon . | . . . . . . . . . Impact Weapon . | . . . . . . . . . Slashing Weapon 1 | . . . . . . . . 1 Piercing Weapon . | . . . . . . . . . Special Melee Weapon . | . . . . . . . . . Unidentified Prototypes 2 | . . 1 . . 1 . . . Parts Lost 14 | . 4 . . . . . . 10 Power 2 | . 1 . . . . . . 1 Propulsion 6 | . 1 . . . . . . 5 Utility 4 | . 2 . . . . . . 2 Weapon 2 | . . . . . . . . 2 Highest Loss Streak 4 | . 2 . . . . . . 4 To Critical Strikes . | . . . . . . . . . Average Backups 14 | . 5 9 13 17 18 20 19 18 Power 2 | . 1 1 1 4 4 4 4 3 Propulsion 4 | . 1 4 6 6 5 5 5 4 Utility 2 | . . 1 2 2 2 4 4 4 Weapon 5 | . 2 3 4 5 6 7 6 7 Tool/Special . | . . . . . . . . . Unused Backups 19 | . 4 . . . 5 . 3 7 Power 4 | . . . . . 1 . . 3 Propulsion 4 | . . . . . 2 . . 2 Utility 3 | . . . . . 1 . . 2 Weapon 8 | . 4 . . . 1 . 3 . Tool/Special . | . . . . . . . . . Average Slot Usage (%) 95 | . 91 100 100 100 92 100 100 90 Engine 9 | . 12 14 14 14 9 9 9 2 Core 1 | . . . . . . . . 4 Treads 24 | . 16 10 . . 26 36 36 32 Leg 4 | . . 7 28 28 7 . . . Flight 1 | . 6 . . . . . . . Device 9 | . 11 14 14 14 9 9 9 5 Storage 10 | . 14 14 14 14 9 9 9 9 Processor 2 | . . . . . . . . 7 Protection 8 | . . . . . 11 18 18 10 Energy Gun 2 | . 2 . . . . . . 6 Ballistic Gun 3 | . 20 . . . . . . . Ballistic Cannon 15 | . 4 28 28 28 18 17 18 10 Peak Build Rating 35 | 7 11 18 19 19 25 28 33 35 Average Rating 21 | 6 7 12 17 19 21 25 30 30 On Entrance 17 | . 7 10 17 19 19 24 28 33 Avg Prop Armor Cover (%) 7 | . 4 10 . . 7 . . . Naked Turns . | . . . . . . . . . Heaviest Build 70 | 15 54 54 54 54 60 67 70 70 Greatest Support 82 | 40 40 35 35 35 80 80 82 82 Greatest Overweight (x) 15 | . 5 5 1 1 5 . . 15 Average Overweight (x) . | . . 4 1 1 . . . . Largest Inventory Capacity 20 | 8 20 20 20 20 20 20 20 20 Average Capacity 17 | 7 8 20 20 20 20 20 20 20 Most Carried 20 | 2 8 13 17 17 20 20 20 20 Average Carried 14 | . 5 9 13 17 18 20 19 18 Final Capacity 20 | 8 20 20 20 20 20 20 20 20 Final Carried 20 | 2 8 13 17 17 20 20 20 20 Class Distribution -------------------- 53% | Scavenger-Mutant 46% | Mutant Dominant Class ---------------- Mutant | -10/Materials Mutant | -10/Mines Mutant | -10/Exiles Mutant | -9/Mines Scavenger-Mutant | -8/Materials Scavenger-Mutant | -8/Garrison Scavenger-Mutant | -8/Materials Scavenger-Mutant | -8/Garrison Resources | -11 -10 -10 -10 -9 -8 -8 -8 -8 ----------- Run | Yrd Mat Min Exi Min Mat Gar Mat Gar Matter Collected 2280 | 300 435 90 . 68 298 512 154 423 Remotely . | . . . . . . . . . Salvage Created 2029 | 195 502 87 . 62 302 316 157 408 Parts 140 | 20 25 8 . . 27 22 5 33 Haulers Intercepted 3 | . 1 . . . 2 . . . Recyclers Shooed 5 | . 4 . . . 1 . . . Parts Field Recycled . | . . . . . . . . . Retrieved Matter . | . . . . . . . . . Parts Self-Destructed . | . . . . . . . . . Prevented . | . . . . . . . . . Parts Restored . | . . . . . . . . . Kills | -11 -10 -10 -10 -9 -8 -8 -8 -8 ------- Run | Yrd Mat Min Exi Min Mat Gar Mat Gar Combat Hostiles Destroyed 61 | . 12 4 . . 3 14 3 25 Guns 15 | . 12 . . . . . . 3 Cannons 29 | . . 4 . . 3 10 3 9 AOE 17 | . . . . . . 4 . 13 Classes Destroyed 13 | 3 3 . . . 2 2 1 2 Worker 2 | 1 . . . . 1 . . . Tunneler 5 | 4 1 . . . . . . . Hauler 3 | . 1 . . . 2 . . . Recycler 5 | 1 2 . . 1 1 . . . Mechanic 1 | . . . . . . . 1 . Watcher 1 | . . . . . 1 . . . Swarmer 26 | . 9 2 . . . 3 . 12 Saboteur 2 | . . . . . . . . 2 Grunt 15 | . 3 2 . . . 6 1 3 Duelist 1 | . . . . . . 1 . . Sentry 10 | . . . . . 3 3 2 2 Hunter 2 | . . . . . . 1 . 1 Programmer 5 | . . . . . . . . 5 Best Kill Streak 7 | 3 7 2 . 1 3 4 2 6 Combat Bots Only 6 | . 5 2 . . 1 4 2 6 Max Kills in Single Turn 4 | 1 1 1 . 1 2 3 1 4 Gunslinging . | . . . . . . . . . Exploded 4 | . . . . . . 3 . 4 Melee . | . . . . . . . . . Uniques/NPCs Destroyed . | . . . . . . . . . Combat | -11 -10 -10 -10 -9 -8 -8 -8 -8 -------- Run | Yrd Mat Min Exi Min Mat Gar Mat Gar Hostile Shots Fired 404 | . 98 13 . . 18 68 26 181 Missed 90 | . 25 2 . . 4 15 7 37 Hits 314 | . 73 11 . . 14 53 19 144 Melee 1 | . . . . . . . . 1 Projectile 313 | . 73 11 . . 14 53 19 143 Critical Strikes 7 | . . . . . . 1 3 3 Damage Taken 3971 | . 665 97 . . 213 738 325 1933 Core 753 | . 159 38 . . 44 65 36 411 Absorbed by Shields 90 | . . . . . . 65 . 25 Core Remaining (%) 60 | 100 . . . 21 . . . . Volleys Fired 245 | 14 66 11 . 6 15 39 14 80 Largest 2 | 2 2 2 . 2 2 2 2 2 Hottest 115 | 60 66 66 . 66 66 81 88 115 Shots Fired 416 | 24 122 22 . 12 30 72 30 104 Gun 186 | 24 118 . . . . . . 44 Cannon 221 | . 4 22 . 12 30 70 30 53 Launcher 9 | . . . . . . 2 . 7 Special . | . . . . . . . . . Kinetic 349 | 10 122 22 . 12 30 70 30 53 Thermal 44 | . . . . . . . . 44 Explosive 9 | . . . . . . 2 . 7 Electromagnetic 14 | 14 . . . . . . . . Robot Hit Streak 15 | 6 15 3 . 3 5 14 9 11 Robot Miss Streak 6 | 2 6 5 . 3 2 3 4 4 Penetration Max 1 | . . . . . . 1 1 1 Secondary Targets 1 | . 1 . . . . . . . Max Gunslinging Chain 1 | . 1 . . . . . . . Shots Hit Robots 220 | 14 67 8 . 6 17 50 14 44 Core Hits 115 | 7 32 4 . 1 8 26 6 31 Critical Kills 3 | . . . . . . 1 2 . Critical Parts Destroyed 8 | . . . . . . 4 4 . Critical Strikes 24 | 2 . . . . . 8 7 7 Destroy 11 | . . . . . . 5 6 . Blast 11 | . . . . . . 3 1 7 Corrupt 2 | 2 . . . . . . . . Melee Attacks . | . . . . . . . . . Impact . | . . . . . . . . . Slashing . | . . . . . . . . . Piercing . | . . . . . . . . . Sneak Attacks . | . . . . . . . . . Combat Hostiles . | . . . . . . . . . Follow-up Attacks . | . . . . . . . . . Damage Inflicted 5540 | 179 717 170 . 123 398 1417 458 2078 Guns 1240 | 179 677 . . . . . . 384 Cannons 3022 | . 40 170 . 123 398 1040 438 813 Explosions 1255 | . . . . . . 377 . 878 Melee . | . . . . . . . . . Ramming 23 | . . . . . . . 20 3 Kinetic 3760 | 61 717 170 . 123 398 1040 438 813 Thermal 384 | . . . . . . . . 384 Explosive 1255 | . . . . . . 377 . 878 Electromagnetic 118 | 118 . . . . . . . . Impact . | . . . . . . . . . Slashing . | . . . . . . . . . Piercing . | . . . . . . . . . Highest Corruption 8 | . . . . . . . 2 8 Average Corruption 6 | . . . . . . . 2 7 Corruption Purged . | . . . . . . . . . Corruption Blocked . | . . . . . . . . . Effects 61 | . . . . . . . 7 54 Message Errors 15 | . . . . . . . . 15 Matter Fused 19 | . . . . . . . . 19 Heat Flow Errors 6 | . . . . . . . . 6 Parts Rejected 1 | . . . . . . . 1 . Data Loss (minor) 8 | . . . . . . . 3 5 Data Loss (major) 5 | . . . . . . . . 5 Misfires 5 | . . . . . . . 2 3 Alerts 1 | . . . . . . . 1 . Weapon Failures 1 | . . . . . . . . 1 Overload Shots . | . . . . . . . . . Overflow Damage 78 | . . . . 16 1 . . 61 Projectiles 39 | . . . . 16 1 . . 22 Explosions 39 | . . . . . . . . 39 Melee . | . . . . . . . . . Knockbacks 19 | . . 2 . 2 2 4 3 6 Impact . | . . . . . . . . . Kinetic 17 | . . 2 . 2 2 4 3 4 Secondary 2 | . . . . . . . . 2 Self-Inflicted Damage 106 | . . . . . . . . 106 Shots 3 | . . . . . . . . 3 Rammed 3 | . . . . . . . 1 2 Targets Rammed 3 | . . . . . . . 1 2 Kicked . | . . . . . . . . . Crushed . | . . . . . . . . . Highest Temperature 501 | . 9 30 . 30 8 198 289 501 Average Temperature 89 | . 4 11 . 13 3 93 111 121 Received Heat Transfer 1272 | . 93 12 . . 36 339 171 621 Effects 3 | . . . . . . . . 3 Interference 1 | . . . . . . . . 1 Short Circuit 1 | . . . . . . . . 1 Damage (minor) 1 | . . . . . . . . 1 Siege Activations . | . . . . . . . . . Martial Activations . | . . . . . . . . . Shielding Activations . | . . . . . . . . . Robots Disrupted . | . . . . . . . . . Combat Hostiles . | . . . . . . . . . Robots Corrupted . | . . . . . . . . . Combat Hostiles . | . . . . . . . . . Parts Fried . | . . . . . . . . . Impact Corruptions . | . . . . . . . . . Robots Melted . | . . . . . . . . . Combat Hostiles . | . . . . . . . . . Parts Melted 3 | . . . . . . . . 3 Heat Transferred 666 | . . . . . . . . 666 Parts Sabotaged 3 | . . . . . . . . 3 Parts Stolen . | . . . . . . . . . Parts Stripped . | . . . . . . . . . Power Chain Reactions . | . . . . . . . . . Alert | -11 -10 -10 -10 -9 -8 -8 -8 -8 ------- Run | Yrd Mat Min Exi Min Mat Gar Mat Gar Maximum Alert Level 4 | . . . . . . 3 1 4 Low Security (%) 47 | 100 100 100 . 100 100 19 . . Level 1 11 | . . . . . . 17 100 6 Level 2 12 | . . . . . . 39 . 12 Level 3 23 | . . . . . . 24 . 65 Level 4 4 | . . . . . . . . 15 Level 5 . | . . . . . . . . . High Security . | . . . . . . . . . Max Security . | . . . . . . . . . Peak Influence 1114 | 10 195 91 . 5 50 809 393 1114 Initial 393 | . . 4 . . . . 393 230 Average 364 | 1 57 34 . . 13 505 327 776 Influence Increases 2832 | 30 423 210 . 6 159 849 211 944 Destroy 0b10 Robot/C 1400 | . 240 100 . . 60 420 80 500 Destroy 0b10 Robot/NC 100 | 30 20 . . 5 25 . 20 . Destroy Leader 170 | . 42 20 . . 36 10 32 30 Allied During Kill 54 | . . 8 . . . 26 20 . Trap Triggered on 0b10 20 | . . 20 . . . . . . Successful Hack 60 | . 16 . . . 34 . 10 . Disable Machine 60 | . . . . . . 15 15 30 Anti-Garrison Action 600 | . . . . . . 350 . 250 Destroy Structure 113 | . . 2 . 1 4 13 19 74 Lose Combat Pursuer 255 | . 105 60 . . . 15 15 60 Influence Decreases 1758 | 30 411 222 . 6 159 40 666 224 Entered New Map 548 | . . 8 . . . . 416 124 Time Decay 930 | 30 371 174 . 6 159 . 190 . Lost Part 140 | . 40 . . . . . . 100 Lost Ally 140 | . . 40 . . . 40 60 . Squads Dispatched 3 | . . . . . 1 . 2 . Investigation . | . . . . . . . . . Extermination . | . . . . . . . . . Reinforcement 1 | . . . . . . . 1 . Assault . | . . . . . . . . . Garrison 2 | . . . . . 1 . 1 . Intercept . | . . . . . . . . . Searches Triggered . | . . . . . . . . . Construction Impeded . | . . . . . . . . . Haulers Reinforced . | . . . . . . . . . Active Scanning Responses . | . . . . . . . . . Cargo Convoy Interrupts . | . . . . . . . . . Stealth | -11 -10 -10 -10 -9 -8 -8 -8 -8 --------- Run | Yrd Mat Min Exi Min Mat Gar Mat Gar Distress Signals 4 | . 1 . . . 1 . 2 . Communications Jammed . | . . . . . . . . . Distress Signals . | . . . . . . . . . Times Spotted 100 | . 29 6 . . 6 20 10 29 Peak Tracking Total 8 | . 5 3 . . 4 4 4 8 Tactical Retreats 11 | . 4 2 . . . 1 1 3 Traps | -11 -10 -10 -10 -9 -8 -8 -8 -8 ------- Run | Yrd Mat Min Exi Min Mat Gar Mat Gar Traps Triggered 13 | . 7 . . . 1 2 1 2 Indirectly . | . . . . . . . . . Trap Hack Attempts . | . . . . . . . . . Triggered . | . . . . . . . . . Disarmed . | . . . . . . . . . Reprogrammed . | . . . . . . . . . Reused 2 | . . 2 . . . . . . Traps Extracted . | . . . . . . . . . Installed 2 | . . 2 . . . . . . Triggered 2 | . . 2 . . . . . . Most Traps Carried 1 | . . 1 . . . . . . Machines | -11 -10 -10 -10 -9 -8 -8 -8 -8 ---------- Run | Yrd Mat Min Exi Min Mat Gar Mat Gar Machines Disabled 10 | . . . . . . 3 1 6 Max in Single Turn 1 | . . . . . . 1 . 1 Garrison Relay 5 | . . . . . . 2 . 3 Machines Repaired . | . . . . . . . . . Machines Dismantled . | . . . . . . . . . Machines Sabotaged . | . . . . . . . . . Overloaded Fab Kills . | . . . . . . . . . Hacking | -11 -10 -10 -10 -9 -8 -8 -8 -8 --------- Run | Yrd Mat Min Exi Min Mat Gar Mat Gar Machines Accessed 17 | . 4 . 2 . 3 4 2 2 Terminals 12 | . 4 . . . 2 4 . 2 Fabricators . | . . . . . . . . . Repair Stations . | . . . . . . . . . Recycling Units . | . . . . . . . . . Scanalyzers 1 | . . . . . . . 1 . Garrison Access 2 | . . . . . 1 . 1 . Total Hacks 42 | . 13 . 2 . 8 11 3 5 Successful 17 | . 5 . 2 . 7 . 3 . Failed 25 | . 8 . . . 1 11 . 5 Catastrophic 3 | . . . . . . 2 . 1 Database Lockouts . | . . . . . . . . . Manual 10 | . 9 . 1 . . . . . Terminals 36 | . 13 . . . 7 11 . 5 Fabricators . | . . . . . . . . . Repair Stations . | . . . . . . . . . Recycling Units . | . . . . . . . . . Scanalyzers 2 | . . . . . . . 2 . Garrison Access 2 | . . . . . 1 . 1 . Terminal Hacks 12 | . 4 . 2 . 6 . . . Record 1 | . . . 1 . . . . . Robot Analysis 2 | . 2 . . . . . . . Prototype ID Bank 3 | . 1 . . . 2 . . . Branch Access Points 1 | . . . . . 1 . . . Hauler Manifests 2 | . 1 . . . 1 . . . Registered Components 1 | . . . . . 1 . . . Zone Layout 1 | . . . . . 1 . . . Proto ID Catalog 1 | . . . 1 . . . . . Fabricator Hacks . | . . . . . . . . . Repair Station Hacks . | . . . . . . . . . Recycling Unit Hacks . | . . . . . . . . . Scanalyzer 2 | . . . . . . . 2 . Insert Component 1 | . . . . . . . 1 . Analyze 1 | . . . . . . . 1 . Garrison Access Hacks 2 | . . . . . 1 . 1 . Unlock Access 2 | . . . . . 1 . 1 . Unauthorized Hacks 1 | . 1 . . . . . . . Terminals 1 | . 1 . . . . . . . Track 1 | . 1 . . . . . . . Fabricators . | . . . . . . . . . Repair Stations . | . . . . . . . . . Recycling Units . | . . . . . . . . . Scanalyzers . | . . . . . . . . . Garrison Access . | . . . . . . . . . Data Cores Recovered . | . . . . . . . . . Used . | . . . . . . . . . Hacking Detections 13 | . 4 . . . 2 4 1 2 Full Trace Events 3 | . . . . . . 3 . . Feedback Events . | . . . . . . . . . Feedback Blocked . | . . . . . . . . . Robot Schematics Acquired . | . . . . . . . . . Robots Built . | . . . . . . . . . Authchips . | . . . . . . . . . Time . | . . . . . . . . . Total Robot Build Rating . | . . . . . . . . . Part Schematics Acquired 1 | . . . . . . . 1 . Parts Built . | . . . . . . . . . Authchips . | . . . . . . . . . Time . | . . . . . . . . . Total Part Build Rating . | . . . . . . . . . Part Studies Acquired . | . . . . . . . . . Parts Repaired . | . . . . . . . . . Time . | . . . . . . . . . Parts Recycled . | . . . . . . . . . Recycled Matter . | . . . . . . . . . Retrieved Matter . | . . . . . . . . . Retrieved Components . | . . . . . . . . . Parts Scanalyzed 1 | . . . . . . . 1 . Part Schematics Acquired 1 | . . . . . . . 1 . Parts Damaged . | . . . . . . . . . Bothacking | -11 -10 -10 -10 -9 -8 -8 -8 -8 ------------ Run | Yrd Mat Min Exi Min Mat Gar Mat Gar Used RIF Installer . | . . . . . . . . . Robots Hacked . | . . . . . . . . . Non-combat . | . . . . . . . . . Combat . | . . . . . . . . . Robot Hacks Applied . | . . . . . . . . . Relay Couplers Released 21 | . . . . . . 8 . 13 Machine Destruction 21 | . . . . . . 8 . 13 Fabnet Peak Effective % . | . . . . . . . . . Robots Rewired 5 | . . . . . . 5 . . Allies Hacked . | . . . . . . . . . Hacks Repelled . | . . . . . . . . . Allies | -11 -10 -10 -10 -9 -8 -8 -8 -8 -------- Run | Yrd Mat Min Exi Min Mat Gar Mat Gar Total Allies 7 | . . 2 . . . 5 . . Largest Group 3 | . . 2 . . . 3 3 . Highest-Rated Group 64 | . . 50 . . . 64 48 . Highest-Rated Ally 39 | . . 31 . . . 39 16 . Initial Warlord ECA Mod 6 | . . . . . . . 6 6 Total Orders . | . . . . . . . . . Ally Attacks 79 | . . 5 . . . 28 46 . Total Damage 915 | . . 42 . . . 418 455 . Kills 12 | . . 1 . . . 7 4 . Allies Corrupted . | . . . . . . . . . Allies Melted . | . . . . . . . . . Intel | -11 -10 -10 -10 -9 -8 -8 -8 -8 ------- Run | Yrd Mat Min Exi Min Mat Gar Mat Gar Active Infowar (turns) 6168 | 144 1123 517 604 240 506 1580 387 1067 Sensors 2 | . . 2 . . . . . . Seismic 6166 | 144 1123 515 604 240 506 1580 387 1067 Robot Analysis Total 2 | . 2 . . . . . . . Derelict Logs Recovered 2 | . . 2 . . . . . . Drone Launches . | . . . . . . . . . Drone Recoveries . | . . . . . . . . . Exploration | -11 -10 -10 -10 -9 -8 -8 -8 -8 ------------- Run | Yrd Mat Min Exi Min Mat Gar Mat Gar Turns Passed 7160 | 220 1351 517 604 240 508 1580 387 1753 Spaces Moved 3727 | 105 698 276 301 110 253 876 212 896 Core 69 | 2 65 . . . . . . 2 Treads 2778 | 103 478 . . . 215 876 212 894 Legs 480 | . . 68 301 110 1 . . . Wheels 279 | . 34 208 . . 37 . . . Hover . | . . . . . . . . . Flight 121 | . 121 . . . . . . . Fastest Speed 32 | 50 32 155 200 200 155 160 156 155 Average Speed 166 | 157 157 167 200 200 159 160 157 167 Slowest Speed 800 | 160 300 280 200 200 200 160 160 800 Overloaded Moves . | . . . . . . . . . Propulsion Burnouts . | . . . . . . . . . Robots Hopped . | . . . . . . . . . Potential Cave-ins . | . . . . . . . . . Cave-ins Triggered . | . . . . . . . . . Exploration Rate (%) 45 | 6 89 59 55 21 25 81 21 56 Regions Visited 8 Branch Regions 3 Pre-discovered Areas 1 | . . . 1 . . . . . Known Exits Taken 2 | . . . . . 1 . 1 . Unknown Exits Taken 5 | 1 1 1 1 1 . . . . Scrap Searched . | . . . . . . . . . Spaces Dug 14 | . . . . . . . . 14 Terrain Destroyed 65 | . . 2 . 1 4 3 18 37 Melee . | . . . . . . . . . Projectile 25 | . . 2 . 1 4 . 18 . AOE 40 | . . . . . . 3 . 37 Terrain Rammed . | . . . . . . . . . Walls Destroyed . | . . . . . . . . . Machines Disabled . | . . . . . . . . . Actions | -11 -10 -10 -10 -9 -8 -8 -8 -8 --------- Run | Yrd Mat Min Exi Min Mat Gar Mat Gar Total 4301 | 132 837 308 304 119 333 988 241 1039 Wait 102 | 5 24 1 . 4 13 16 2 37 Move 3717 | 104 697 275 300 109 252 875 211 894 Hop . | . . . . . . . . . Pick Up 48 | 2 14 5 4 . 16 1 4 2 Fast Attach 34 | 7 14 2 . . 7 . 1 3 Attach 6 | . 2 . . . 2 . . 2 Detach 3 | . . 2 . . . . . 1 Swap 52 | . 10 7 . . 9 11 2 13 Drop 50 | . 10 3 . . 19 10 6 2 Fire 245 | 14 66 11 . 6 15 39 14 80 Melee . | . . . . . . . . . Ram 1 | . . . . . . . . 1 Kick . | . . . . . . . . . Crush 2 | . . . . . . . 1 1 Escape Stasis 5 | . . . . . . 2 . 3 Rewire 34 | . . . . . . 34 . . Trap 2 | . . 2 . . . . . . Miscellaneous . | . . . . . . . . . Route ------- -11/Scrapyard -10/Materials (discovered 3 exits: [*Mat x2] / [*Min]) -10/Mines (discovered 3 exits: [*Mat] / *Exi / [*Sub]) -10/Exiles -9/Mines -8/Materials (discovered 3 exits: Fac x2 / Gar) -8/Garrison (discovered 4 exits: *Fac x3 / *Mat) -8/Materials -8/Garrison (discovered 2 exits: [*Mat x2]) History --------- Turn | Location | Event 12 | -11/Scrapyard | Discovered new exit (range 15) 221 | -11/Scrapyard | Entered Materials 317 | -10/Materials | Build established: Mutant 404 | -10/Materials | Discovered new exit (range 4) 444 | -10/Materials | Discovered new exit (range 13) 850 | -10/Materials | Core integrity fell below 50% 1016 | -10/Materials | Discovered new exit (range 4) 1572 | -10/Materials | Entered Mines 1580 | -10/Mines | Learned 2 Materials zone layouts 1655 | -10/Mines | Discovered new exit (range 5) 1675 | -10/Mines | Found a damaged Exp. Sensor Array with a note attached 1678 | -10/Mines | Found Prototype Device 1699 | -10/Mines | Identified Exp. Sensor Array 1788 | -10/Mines | Found a Scrap Suit stashed away for nefarious purposes 1836 | -10/Mines | Found a hidden stash of uninstalled traps 1987 | -10/Mines | Discovered new exit (range 10) 1995 | -10/Mines | Learned 2 Materials zone layouts 2081 | -10/Mines | Deemed a non-threat by the Exiles lab entrance 2081 | -10/Mines | Discovered new exit (range 5) 2089 | -10/Mines | Entered Exiles 2137 | -10/Exiles | Met 8R-AWN 2173 | -10/Exiles | Met EX-HEX 2225 | -10/Exiles | Met EX-BIN 2249 | -10/Exiles | Aligned with FarCom system 2251 | -10/Exiles | Given EX-Vault access code 2297 | -10/Exiles | Opened EX-Vault 2311 | -10/Exiles | Found Longsword +1 2356 | -10/Exiles | Warned to stay clear of 0b10 Research branches 2412 | -10/Exiles | Met EX-DEC 2438 | -10/Exiles | Learned location of Zion (-6) 2630 | -10/Exiles | Discovered new exit (range 15) 2693 | -10/Exiles | Left Exiles lab with Longsword +1 2693 | -10/Exiles | Entered Mines 2761 | -9/Mines | Met a Derelict bent on vengeance 2867 | -9/Mines | Discovered new exit (range 6) 2933 | -9/Mines | Entered Materials 2933 | -8/Materials | Evolved 4 slots: Propulsion x2, Utility x2 2934 | -8/Materials | Identified exit to Factory 3198 | -8/Materials | Identified exit to Garrison 3202 | -8/Materials | Garrison activated, responded to threat 3225 | -8/Materials | Build established: Scavenger-Mutant 3441 | -8/Materials | Entered Garrison 3581 | -8/Garrison | Triggered checkpoint 3743 | -8/Garrison | Garrison Relay disabled 3865 | -8/Garrison | Triggered checkpoint 3893 | -8/Garrison | Triggered checkpoint 4015 | -8/Garrison | Triggered checkpoint 4059 | -8/Garrison | Triggered checkpoint 4131 | -8/Garrison | Discovered new exit (range 5) 4187 | -8/Garrison | Discovered exit to Factory (range 10) 4527 | -8/Garrison | Discovered exit to Factory (range 15) 4619 | -8/Garrison | Triggered checkpoint 4719 | -8/Garrison | Discovered exit to Factory (range 15) 5021 | -8/Garrison | Entered Materials 5021 | -8/Materials | Accompanied by 3 allies 5338 | -8/Materials | Garrison activated, responded to threat 5400 | -8/Materials | Identified exit to Garrison 5408 | -8/Materials | Entered Garrison 5428 | -8/Garrison | Lost 3 allies 5482 | -8/Garrison | Triggered checkpoint 5508 | -8/Garrison | Garrison Relay disabled 5526 | -8/Garrison | Garrison Relay disabled 5635 | -8/Garrison | Triggered checkpoint 5919 | -8/Garrison | Discovered new exit (range 13) 6074 | -8/Garrison | Attempted to access garrison exit controls, blocked by remote lockdown 6450 | -8/Garrison | Triggered checkpoint 6497 | -8/Garrison | Garrison Relay disabled 6665 | -8/Garrison | Triggered checkpoint 6675 | -8/Garrison | Core integrity fell below 50% 6855 | -8/Garrison | Discovered new exit (range 14) 6907 | -8/Garrison | Lost 4 parts (2n2u) 6967 | -8/Garrison | Attempted to access garrison exit controls, blocked by remote lockdown 7134 | -8/Garrison | Triggered checkpoint 7152 | -8/Garrison | Build established: Mutant 7152 | -8/Garrison | Core integrity fell below 20% 7161 | -8/Garrison | Destroyed by G-47 Trooper with Particle Gun Last Messages --------------- 07004_ UZZRJNDUG%DOZO LED,PTVN2 07033_ System corrupted: Matter fused (-2). 07056_ SM #WGFFF8Y,M%P%NJFVN 07079_ System corrupted: Component data lost. 07116_ >Y0RY/|ORSS&BWRFIA7 P 07118_ Triggered Stasis Trap. 07118_ A bubble of rippling energy engulfs the area. 07118_ Field strength at 70. 07120_ Field strength at 40. 07121_ Field strength at 10. 07122_ Stasis field depleted. 07134_ Beams of light sweep through the air. An alarm sounds. 07134_ Lgt. Treads destroyed. 07138_ Beamcaster destroyed. 07138_ Lgt. Treads destroyed. 07149_ Critical hit (Burn: +37). 07156_ Gauss Cannon destroyed. 07158_ Slammed into G-47 Trooper. Map ----- +----------------------------------------------------+ | #????????????????# #???????# < | | ### #????????????????# #???????# | | ??# #????????????????# #???????# | | ??# #????????????????# #???????# | | ??# #????????????????# #???????# | | ??# #????????????????# #???????# | | ??# #????????????????# #???????# | | ### ###########??????# ######### | | #??????# | | ### #??????# | | ??# ######## #??????# ######################### | | ### #??????# #??????# #???????????????????????? | | " #??????# #??????# #???????????????????????? | | ### ##?????# #??????# #???????????????????????? | | ??# ## ????# #??????# #???????????????????????? | | ??# ## ????# ######## #???????????????????????? | | ??# ## ?#### ## ## #???????????????????????? | | ??# [## ## ## ## ## ##??????????????????????? | | ??# ###"""" #??????????????????????? | | ??# [ #??????????????????????? | | ??# #??????????????????????? | | ??#######""# ##^^ ## #??????????????????????? | | ????????#### ## ## ###????????????????????? | | ?????????# #????????????????????? | | ?????????# = g #????????????????????? | | ??######## [ @g #????????????????????? | | ??# " * g%#????????????????????? | | ??# ####### ## ## ###????????????????????? | | ??# #???###* ## ## #??????????????????????? | | ??# #???# ?????????????????????? | | ??# #???### ???????????????????? | | ## ####### ?????????????????? | | # ##""""############????????????????? | | ## ####### #???ss????????????????????????????? | | ??# #?????# #?????????????????????????????????? | | ??# #?????# #?????????????????????????????????? | | ??# #?????# #?????????????????????????????????? | | ### #?????# #?????????????????????????????????? | | # # #?????# #?????????????????????????????????? | | ######## #?????????????????????????????????? | | #?????????????????????????????????? | | #?????????????????????????????????? | | [= #?????????????????????????????????? | | ### ####### ###?????????????????????????????????? | | #?# #??####!####????????????????????????????????? | | ??# #??#!!#!#!!#????????????????????????????????? | | ??# #??#!!|="!!#????????????????????????????????? | | ??# #??##[#[#+##????????????????????????????????? | | ??# #??#!!# #???????????????????????????????????? | | ??# #??#!!+ +???????????????????????????????????? | +----------------------------------------------------+ Best States ------------- Heat Dissipation 31 Energy Generation 14 Energy Capacity 265 Matter Stores 300 Matter Capacity 300 Sight Range 16 Robot Scan Range 20 Terrain Scan Density 10 Armor Coverage 300 Evasion (%) 63 Targeting Accuracy 8 Recoil Reduction 4 Item Schematics ----------------- Exp. Sensor Array | -8/Materials | Scanalyzed Robot Schematics ------------------ None Fabricated ------------ Nothing Repaired ---------- Nothing Studied --------- None Alien Tech Used ----------------- None Achievements -------------- None Challenges ------------ None Game ------ Seed EnergySkeletonScrapsphere Manual? 0 Play Time 00:51:21 Cumulative 55.5 hours Start 2026.04.29 @ 14:06:30 End 2026.05.02 @ 12:35:54 Sessions 6 Manual Loads 0 Difficulty Rogue Special Mode None Game No. 24 Rogue 24 Adventurer 0 Explorer 0 Win Type - Total 2 Types 1/0/1/0/0/0/0/0/0/0 Lore% 44 Gallery% 44 Achievement% 41 Wizard Run 0 Options --------- Layout 1 ASCII 0 Keyboard 1 Movement Arrows Keybinds 0 Fullscreen 2 Font 24/Smallcaps Map View 50x35 Zoom Use 0% Tactical HUD 1 Map Filters NONE Filters NONE Steam 1 RUN: 7ea0073d-26d9-4c5a-8b78-d66f14e8d6ae